bitfinex-derivatives/quotes_BTCF0:USTF0_20251215
["timestamp","ask_amount","ask_price","bid_price","bid_amount"]
[1765816130986,0.6883,86976.0,86975.0,0.0114977]
[1765816131187,0.8683,86976.0,86975.0,0.37448476]
[1765816131379,0.8683,86976.0,86975.0,0.70368476]
[1765816131985,0.8683,86976.0,86975.0,0.70468476]
[1765816132296,0.8683,86976.0,86975.0,0.7983481]
[1765816132798,0.8683,86976.0,86975.0,0.4691481]
[1765816132994,0.8683,86976.0,86975.0,0.1268481]
[1765816133491,0.8683,86976.0,86975.0,0.1153504]
[1765816133695,0.6997976,86976.0,86975.0,0.1153504]
[1765816133893,0.6997981,86972.0,86971.0,8.537e-05]
[1765816134094,0.8797981,86972.0,86971.0,8.537e-05]
[1765816134584,0.8797981,86972.0,86971.0,0.01970662]
[1765816135197,0.8797981,86972.0,86971.0,0.02370662]
[1765816136994,0.8797981,86972.0,86952.0,0.11443952]
[1765816136995,0.6998006,86953.0,86952.0,0.11443952]
[1765816137188,0.6998006,86953.0,86952.0,0.0115007]
[1765816137189,0.8783,86953.0,86952.0,0.0115007]
[1765816137391,0.8783,86953.0,86952.0,0.03085338]
[1765816137898,0.87839142,86953.0,86952.0,0.03085338]
[1765816138194,0.87839142,86953.0,86952.0,0.03685338]
[1765816138599,0.19009142,86953.0,86952.0,0.70935338]
[1765816138797,9.142e-05,86953.0,86952.0,0.70935338]
[1765816138991,9.142e-05,86953.0,86952.0,0.8082922]
[1765816139301,9.142e-05,86953.0,86952.0,0.70535338]
[1765816139497,0.68839142,86953.0,86952.0,0.13595864]
[1765816139698,0.68839142,86953.0,86952.0,0.03285338]
[1765816140897,0.68839142,86953.0,86952.0,0.02135268]
[1765816141493,9.142e-05,86953.0,86952.0,0.69385268]
[1765816141701,0.00017244,86961.0,86960.0,0.6902097]
[1765816142107,0.7024,86985.0,86984.0,0.0114965]
[1765816142395,0.8624,86985.0,86984.0,0.0114965]
[1765816142701,0.7024,86982.0,86981.0,0.0114969]
[1765816142905,0.9024,86982.0,86981.0,0.0114969]
[1765816143406,0.9024,86982.0,86981.0,0.10234914]
[1765816143702,0.9074,86982.0,86981.0,0.10234914]
[1765816144104,0.9074,86982.0,86981.0,0.09085224]
[1765816144401,0.7024,86974.0,86973.0,0.00017244]
[1765816144701,0.8724,86974.0,86973.0,0.00017244]
[1765816144890,0.8724,86974.0,86973.0,4.88e-06]
[1765816144891,0.9024,86974.0,86973.0,4.88e-06]
[1765816145891,0.9044,86974.0,86973.0,4.88e-06]
[1765816146593,0.9074,86974.0,86973.0,4.88e-06]
[1765816147302,0.9084,86974.0,86973.0,4.88e-06]
[1765816151010,0.9054,86974.0,86973.0,4.88e-06]
[1765816151209,0.9074,86974.0,86973.0,4.88e-06]
[1765816151597,0.205,86974.0,86973.0,0.66386488]
[1765816151802,0.203,86974.0,86973.0,0.66386488]
[1765816152010,0.194,86974.0,86973.0,0.66386488]
[1765816152206,0.001,86974.0,86973.0,0.66386488]
[1765816152410,0.004,86974.0,86973.0,0.66386488]
[1765816152811,0.7034,86974.0,86973.0,0.66386488]
[1765816153106,0.34944,86974.0,86973.0,0.66386488]
[1765816153314,0.001,86974.0,86973.0,0.66386488]
[1765816153504,0.0114968,86983.0,86982.0,0.66386]
[1765816153700,0.52744,86983.0,86982.0,0.6753568]
[1765816153896,0.5070469,86983.0,86982.0,0.6753568]
[1765816154097,0.1596069,86983.0,86982.0,0.6753568]
[1765816154308,0.00017244,86990.0,86989.0,0.6753559]
[1765816154509,0.19017244,86990.0,86989.0,0.6753559]
[1765816155009,0.19017244,86990.0,86989.0,0.76535386]
[1765816155405,0.75257244,86990.0,86989.0,0.76535386]
[1765816155599,0.39761244,86990.0,86989.0,0.76535386]
[1765816155900,0.00017244,86990.0,86989.0,0.76535386]
[1765816156095,0.00117244,86990.0,86989.0,0.76535386]
[1765816156506,0.00117244,86990.0,86989.0,0.79415921]
[1765816157308,0.0114936,87007.0,87005.0,0.0114936]
[1765816157509,0.8924,87007.0,87006.0,0.6753536]
[1765816157714,0.53744,87007.0,87006.0,0.6753536]
[1765816158114,0.8924,87007.0,87006.0,0.6753536]
[1765816158507,0.8924,87007.0,87006.0,0.3399436]
[1765816159015,0.8954,87007.0,87006.0,0.3399436]
[1765816159312,0.093,87007.0,87006.0,0.6753536]
[1765816159506,0.005,87007.0,87006.0,0.6753536]
[1765816159706,0.004,87007.0,87006.0,0.6753536]
[1765816160309,0.002,87007.0,87006.0,0.6753536]
[1765816160817,0.70257244,87015.0,87014.0,0.6753526]
[1765816161016,0.88257244,87015.0,87014.0,0.6753526]
[1765816161612,0.88257244,87015.0,87014.0,0.3399426]
[1765816161813,0.35496,87011.0,87010.0,0.011493]
[1765816162012,0.35496,87011.0,87010.0,0.339943]
[1765816162013,0.8424,87011.0,87010.0,0.339943]
[1765816162215,0.8424,87011.0,87010.0,0.011493]
[1765816162910,0.8434,87011.0,87010.0,0.011493]
[1765816163218,0.7024,86999.0,86998.0,0.34011714]
[1765816163421,0.7024,86999.0,86998.0,0.01166714]
[1765816163907,0.7024,86999.0,86998.0,0.00017244]
[1765816164109,0.8724,86999.0,86998.0,0.00017244]
[1765816165206,0.7024,86985.0,86983.0,0.0114966]
[1765816165408,0.7024,86985.0,86971.0,0.10306433]
[1765816165409,0.8924,86985.0,86982.0,0.0114967]
[1765816165814,0.8924,86985.0,86979.0,0.0114972]
[1765816166118,0.8924,86985.0,86984.0,0.01159566]
[1765816166321,0.8924,86985.0,86984.0,9.916e-05]
[1765816166811,0.8944,86985.0,86984.0,9.916e-05]
[1765816167317,0.7024,86968.0,86967.0,0.0114988]
[1765816167617,0.8924,86968.0,86967.0,0.0114988]
[1765816168114,0.8924,86968.0,86967.0,0.10284385]
[1765816168318,0.8924,86968.0,86967.0,0.3399488]
[1765816168518,0.8924,86968.0,86967.0,0.3409488]
[1765816168721,0.8924,86968.0,86967.0,0.43400467]
[1765816169115,0.8924,86968.0,86967.0,0.77041467]
[1765816169619,0.8924,86968.0,86967.0,0.10655467]
[1765816171622,0.8924,86968.0,86967.0,0.09505587]
[1765816171817,0.8924,86968.0,86967.0,0.43776587]
[1765816172024,0.8924,86968.0,86967.0,0.77819587]
[1765816172619,0.19,86968.0,86967.0,0.77819587]
[1765816173117,0.0114976,86976.0,86972.0,0.011498]
[1765816173421,0.68174,86973.0,86972.0,0.011498]
[1765816173606,0.87174,86973.0,86972.0,0.011498]
[1765816174613,0.87174,86973.0,86967.0,0.1971202]
[1765816174614,0.68174,86968.0,86967.0,0.10555467]
[1765816175020,0.68174,86968.0,86967.0,0.10455467]
[1765816175616,0.68174,86968.0,86967.0,0.78869467]
[1765816175822,0.86174,86968.0,86967.0,0.78869467]
[1765816176018,0.86174,86968.0,86967.0,0.002]
[1765816176222,0.85174,86968.0,86967.0,0.002]
[1765816176422,0.68174,86961.0,86959.0,0.10306433]
[1765816176620,0.88918,86960.0,86959.0,0.10306433]
[1765816176826,0.68174,86958.0,86957.0,0.0115]
[1765816177023,0.84174,86958.0,86957.0,0.0115]
[1765816177729,0.68174,86953.0,86951.0,0.17251019]
[1765816177921,0.68174,86953.0,86952.0,0.0115008]
[1765816178122,0.68174,86953.0,86952.0,0.03137708]
[1765816179028,0.68174,86953.0,86952.0,0.03837708]
[1765816179220,0.68174,86953.0,86952.0,0.38108708]
[1765816179825,0.73183916,86953.0,86952.0,0.03837708]
[1765816180227,0.87183916,86953.0,86952.0,0.03837708]
[1765816180629,0.87183916,86953.0,86952.0,0.02687628]
[1765816183831,0.87183916,86953.0,86952.0,0.71001628]
[1765816184225,0.88333976,86953.0,86952.0,0.02687628]
[1765816184734,0.87183916,86953.0,86952.0,0.02687628]
[1765816184931,0.87183916,86953.0,86952.0,0.71001628]
[1765816185434,0.87183916,86953.0,86952.0,0.02687628]
[1765816186430,0.88333976,86953.0,86952.0,0.03837708]
[1765816188632,0.88333976,86953.0,86952.0,0.023803]
[1765816188826,0.88333976,86953.0,86920.0,0.21499]
[1765816188827,0.693242,86943.0,86942.0,0.10316866]
[1765816189037,0.693242,86943.0,86925.0,1.64356288]
[1765816189038,0.693243,86935.0,86934.0,0.10316866]
[1765816189228,0.88918,86920.0,86916.0,0.14356288]
[1765816189435,0.6932454,86917.0,86916.0,0.15506838]
[1765816189637,0.8932454,86917.0,86916.0,1.5]
[1765816189829,0.88174,86917.0,86916.0,1.52014172]
[1765816190030,0.88186887,86917.0,86916.0,1.52014172]
[1765816190229,0.69186887,86917.0,86916.0,1.52014172]
[1765816190431,0.85186887,86917.0,86916.0,1.53164722]
[1765816190634,0.85186887,86917.0,86916.0,1.53464722]
[1765816190839,0.85186887,86917.0,86916.0,1.52314172]
[1765816191449,0.85186887,86917.0,86916.0,1.52614172]
[1765816193633,0.85186887,86917.0,86916.0,0.02614172]
[1765816194032,0.85186887,86917.0,86916.0,0.70928172]
[1765816194330,0.85186887,86917.0,86916.0,2.20928172]
[1765816195541,0.49774887,86917.0,86916.0,2.20928172]
[1765816195942,0.85186887,86917.0,86916.0,2.20928172]
[1765816197340,0.00012887,86917.0,86916.0,2.20928172]
[1765816198143,0.01167674,86927.0,86916.0,2.20928172]
[1765816198144,0.00017254,86927.0,86926.0,0.6946442]
[1765816198343,0.07017254,86927.0,86926.0,1.4180442]
[1765816198641,0.39779254,86927.0,86926.0,1.4180442]
[1765816198840,0.75191254,86927.0,86926.0,0.7349042]
[1765816199229,0.76349399,86927.0,86926.0,0.0115042]
[1765816199433,0.75198989,86927.0,86926.0,0.7349042]
[1765816199639,0.75198989,86927.0,86926.0,1.4190442]
[1765816199845,0.75198989,86927.0,86926.0,1.0786142]
[1765816200235,0.07024989,86927.0,86926.0,1.0786142]
[1765816200543,0.68174,86948.0,86947.0,0.68314]
[1765816200839,0.88174,86948.0,86947.0,0.68314]
[1765816201038,0.88174,86948.0,86947.0,0.34271]
[1765816201241,0.31,86962.0,86940.0,0.93839]
[1765816201242,0.69174,86962.0,86961.0,0.6946396]
[1765816201439,0.17,86962.0,86961.0,0.6946396]
[1765816201641,0.67792,86967.0,86966.0,0.0114989]
[1765816201843,0.67792,86958.0,86957.0,0.6928]
[1765816202140,0.67792,86969.0,86968.0,0.7042986]
[1765816202347,0.67792,86961.0,86960.0,0.34]
[1765816202536,0.67792,86958.0,86957.0,0.38091111]
[1765816202844,0.85792,86958.0,86957.0,0.3515001]
[1765816203146,0.85792,86958.0,86957.0,0.7043001]
[1765816203732,0.18,86958.0,86957.0,0.7043001]
[1765816204041,0.005,86961.0,86960.0,0.7042997]
[1765816204247,0.33524254,86970.0,86969.0,0.7042985]
[1765816204546,0.74809254,86970.0,86969.0,0.0114985]
[1765816204745,0.33507,86965.0,86964.0,0.6928]
[1765816204934,0.33507,86965.0,86953.0,0.0294804]
[1765816204935,0.67792,86954.0,86953.0,0.0294804]
[1765816205140,0.67792,86966.0,86965.0,0.0114991]
[1765816205335,0.84792,86966.0,86965.0,0.0114991]
[1765816205536,0.67792,86961.0,86960.0,0.0114997]
[1765816205732,0.86792,86961.0,86960.0,0.0114997]
[1765816206340,0.67792,86958.0,86957.0,0.003]
[1765816206542,0.67792,86956.0,86955.0,0.0115003]
[1765816206744,0.87792,86956.0,86955.0,0.0115003]
[1765816206940,0.87792,86956.0,86955.0,0.7043003]
[1765816207246,0.002,86961.0,86960.0,0.7042997]
[1765816207544,0.67792,86965.0,86964.0,0.34]
[1765816207735,0.67792,86960.0,86959.0,0.34]
[1765816207936,0.00017254,86970.0,86953.0,0.00017254]
[1765816207937,0.67792,86954.0,86953.0,0.00017254]
[1765816208141,0.85792,86954.0,86953.0,0.00017254]
[1765816208339,0.85792,86954.0,86930.0,0.15885975]
[1765816208340,0.18,86954.0,86931.0,0.02853126]
[1765816208542,0.67792,86934.0,86933.0,0.3515033]
[1765816208744,0.67792,86934.0,86933.0,0.7043033]
[1765816209144,0.67792,86942.0,86941.0,0.0115022]
[1765816209342,0.67792,86939.0,86938.0,0.0115026]
[1765816209658,0.33507,86937.0,86936.0,0.7043028]
[1765816210450,0.67792,86929.0,86928.0,0.02922815]
[1765816210641,0.8794238,86929.0,86928.0,0.02922815]
[1765816210952,0.67792,86922.0,86921.0,0.0115048]
[1765816211142,0.00017254,86930.0,86929.0,0.7043038]
[1765816212046,0.67792,86927.0,86926.0,0.11474462]
[1765816212247,0.67792,86925.0,86924.0,0.10324042]
[1765816212454,0.67792,86925.0,86914.0,0.1444339]
[1765816212455,0.88065,86922.0,86921.0,0.10324042]
[1765816212748,0.67792,86920.0,86919.0,0.10324042]
[1765816212949,0.74792,86920.0,86919.0,0.79604042]
[1765816213351,0.67792,86920.0,86919.0,0.10324042]
[1765816213659,0.67792,86920.0,86895.0,0.21766128]
[1765816213660,0.67792,86917.0,86916.0,1.52014172]
[1765816213956,0.84792,86917.0,86916.0,1.52014172]
[1765816215750,0.84792,86917.0,86916.0,1.52214172]
[1765816216249,0.84792,86917.0,86916.0,1.52514172]
[1765816216450,0.17,86917.0,86916.0,1.52514172]
[1765816217044,0.17,86917.0,86916.0,1.62838214]
[1765816217457,0.00017254,86930.0,86929.0,0.0115038]
[1765816217458,0.67809254,86930.0,86929.0,0.0115038]
[1765816217750,0.0115044,86925.0,86922.0,0.0115047]
[1765816217953,0.49507,86925.0,86924.0,0.6928]
[1765816218453,0.49507,86925.0,86924.0,0.34]
[1765816218454,0.83792,86925.0,86924.0,0.34]
[1765816218854,0.83792,86925.0,86924.0,0.6928]
[1765816219055,0.49507,86925.0,86924.0,0.6928]
[1765816219357,0.16,86925.0,86924.0,0.6928]
[1765816219558,0.67792,86925.0,86924.0,0.001]
[1765816219856,0.85792,86925.0,86924.0,0.001]
[1765816220057,0.85792,86925.0,86924.0,0.002]
[1765816220246,0.6894254,86917.0,86916.0,0.02014172]
[1765816220454,0.8921562,86911.0,86910.0,0.10321934]
[1765816220654,0.6894266,86908.0,86907.0,0.10321934]
[1765816220848,0.67792,86907.0,86906.0,0.10321934]
[1765816221152,0.67792,86907.0,86906.0,0.12360908]
[1765816221153,0.87792,86907.0,86906.0,0.12360908]
[1765816222057,0.87792,86907.0,86906.0,0.12460908]
[1765816222258,0.87792,86907.0,86906.0,0.12456857]
[1765816222655,0.87792,86907.0,86906.0,0.12556857]
[1765816223156,0.87792,86907.0,86906.0,0.36238974]
[1765816223364,0.87792,86907.0,86906.0,0.02238974]
[1765816223550,0.87792,86907.0,86906.0,0.1255552]
[1765816223752,0.87792,86907.0,86906.0,0.02238974]
[1765816225957,0.53507,86907.0,86906.0,0.71518974]
[1765816226153,0.87792,86907.0,86906.0,0.36238974]
[1765816226663,0.87792,86907.0,86906.0,0.02238974]
[1765816226964,0.2,86907.0,86906.0,0.71518974]
[1765816227165,0.0115059,86914.0,86913.0,0.34]
[1765816227166,0.6894259,86914.0,86913.0,0.34]
[1765816227366,0.33507,86907.0,86906.0,0.71518974]
[1765816227550,0.85792,86907.0,86906.0,0.02238974]
[1765816228059,0.85792,86907.0,86906.0,0.71518974]
[1765816228259,0.85792,86907.0,86906.0,0.02038974]
[1765816228465,0.6894269,86906.0,86905.0,1.5]
[1765816228660,0.8694269,86906.0,86905.0,1.5]
[1765816228850,0.8694269,86906.0,86905.0,1.51976021]
[1765816229055,0.51507,86906.0,86905.0,1.51976021]
[1765816229862,0.85792,86906.0,86905.0,1.51976021]
[1765816230267,0.85792,86906.0,86905.0,0.01976021]
[1765816230469,0.65648,86899.0,86898.0,0.00230156]
[1765816230660,0.8679878,86899.0,86898.0,1.50230156]
[1765816230866,0.8679878,86899.0,86898.0,1.52209919]
[1765816231063,0.85648,86899.0,86898.0,1.52209919]
[1765816231757,0.85648,86899.0,86898.0,0.02209919]
[1765816232261,0.85648,86899.0,86898.0,0.02309919]
[1765816233269,0.85648,86899.0,86898.0,0.02409919]
[1765816234558,0.6702093,86888.0,86887.0,0.01164989]
[1765816234758,0.8302093,86888.0,86887.0,1.51164989]
[1765816235062,0.8302093,86888.0,86887.0,1.53167195]
[1765816235063,0.16,86888.0,86887.0,1.53167195]
[1765816235257,0.6702074,86902.0,86901.0,0.6988775]
[1765816235568,0.8502074,86902.0,86901.0,0.68737]
[1765816236062,0.6702085,86894.0,86893.0,0.68737]
[1765816236261,0.6587,86893.0,86892.0,0.0115087]
[1765816236457,0.8487,86893.0,86892.0,0.3605487]
[1765816236658,0.6587,86890.0,86889.0,0.0115091]
[1765816236953,0.6587,86888.0,86887.0,1.52216255]
[1765816237160,0.8387,86888.0,86887.0,1.52016255]
[1765816238160,0.8387,86888.0,86887.0,1.52216255]
[1765816238964,0.8387,86888.0,86887.0,0.02216255]
[1765816239171,0.8387,86888.0,86887.0,5e-08]
[1765816239566,0.6587,86885.0,86884.0,0.10324541]
[1765816239769,0.6587,86885.0,86877.0,1.5]
[1765816239770,0.6587,86878.0,86877.0,1.5]
[1765816239961,0.8502106,86878.0,86877.0,1.52060714]
[1765816240157,0.8503251,86878.0,86877.0,1.52060714]
[1765816241066,0.8503251,86878.0,86877.0,1.52160714]
[1765816241270,0.8503251,86878.0,86877.0,1.52360714]
[1765816242073,0.8503251,86878.0,86877.0,0.02360714]
[1765816242662,0.8503251,86878.0,86877.0,1.52360714]
[1765816243674,0.8502851,86878.0,86877.0,1.52360714]
[1765816245878,0.8502851,86878.0,86877.0,0.02360714]
[1765816246376,0.8502851,86878.0,86877.0,1.52360714]
[1765816247965,0.8502851,86878.0,86877.0,0.02360714]
[1765816248375,0.8502851,86878.0,86877.0,0.90710714]
[1765816248376,0.8503251,86878.0,86877.0,0.90710714]
[1765816248575,0.0001145,86878.0,86877.0,2.52221174]
[1765816248775,0.0001145,86878.0,86877.0,2.43529365]
[1765816248971,0.3509045,86878.0,86877.0,2.43529365]
[1765816249170,0.0201145,86878.0,86877.0,2.43529365]
[1765816249476,0.6818145,86878.0,86877.0,2.20897714]
[1765816249684,0.8418145,86878.0,86877.0,1.52160714]
[1765816249878,0.8418145,86878.0,86877.0,1.52060714]
[1765816250174,0.8448145,86878.0,86877.0,1.52060714]
[1765816250480,0.8618145,86878.0,86877.0,0.16520298]
[1765816250681,0.8648145,86878.0,86877.0,0.02060714]
[1765816250974,0.2136207,86877.0,86876.0,3.61e-06]
[1765816251178,1.0723207,86877.0,86876.0,0.02031902]
[1765816251378,0.4136207,86877.0,86876.0,3.61e-06]
[1765816252172,0.4166207,86877.0,86876.0,3.61e-06]
[1765816253170,0.4196207,86877.0,86876.0,3.61e-06]
[1765816253675,0.6702128,86861.0,86860.0,0.20648553]
[1765816253875,0.8587,86861.0,86860.0,0.92599303]
[1765816254076,0.670211,86875.0,86874.0,0.68737]
[1765816254283,0.850211,86875.0,86874.0,0.68737]
[1765816254483,0.8387,86875.0,86874.0,0.68737]
[1765816255468,0.8387,86875.0,86861.0,1.5]
[1765816255469,0.6587,86862.0,86861.0,1.5115128]
[1765816255674,0.8287,86862.0,86861.0,2.2353128]
[1765816256090,0.8287,86862.0,86861.0,1.5]
[1765816256380,0.8187,86862.0,86861.0,1.5]
[1765816256979,0.6702128,86861.0,86860.0,0.0206245]
[1765816257188,0.86081,86859.0,86850.0,0.20648553]
[1765816257370,0.8287,86859.0,86856.0,0.0115134]
[1765816257575,0.8287,86859.0,86853.0,0.0115139]
[1765816257775,0.8287,86859.0,86855.0,0.0115135]
[1765816257988,0.8287,86859.0,86857.0,0.0115133]
[1765816258176,0.8287,86859.0,86854.0,0.0115137]
[1765816258378,0.8297,86859.0,86850.0,1.5]
[1765816258687,0.8297,86859.0,86858.0,0.0227535]
[1765816258988,0.8297,86859.0,86858.0,0.00230262]
[1765816259283,0.8297,86859.0,86858.0,0.37164039]
[1765816259481,0.8297,86859.0,86858.0,0.00230262]
[1765816259878,0.8307,86859.0,86858.0,0.00230262]
[1765816260188,0.8307,86859.0,86858.0,0.02204328]
[1765816261383,0.6702142,86851.0,86850.0,1.5]
[1765816261591,0.84031417,86851.0,86850.0,1.5]
[1765816261975,0.82879997,86851.0,86850.0,1.52009735]
[1765816262288,9.997e-05,86851.0,86850.0,1.71661735]
[1765816262477,0.00017265,86867.0,86866.0,0.6824622]
[1765816262779,0.00017265,86867.0,86866.0,1.4063822]
[1765816263382,0.00021317,86867.0,86866.0,0.6824622]
[1765816263682,0.00021317,86867.0,86850.0,1.52109735]
[1765816263683,0.67892,86851.0,86850.0,1.52109735]
[1765816263982,0.87892,86851.0,86850.0,2.24401735]
[1765816264183,0.87892,86851.0,86850.0,1.52009735]
[1765816264893,0.68092,86851.0,86850.0,1.52009735]
[1765816265082,0.86092,86851.0,86850.0,1.52009735]
[1765816265682,0.85892,86851.0,86850.0,1.52009735]
[1765816265981,0.86092,86851.0,86850.0,1.52009735]
[1765816266280,0.86292,86851.0,86850.0,1.52009735]
[1765816266988,0.184,86851.0,86850.0,1.53161165]
[1765816267179,0.184,86851.0,86850.0,1.52009735]
[1765816268482,0.86292,86851.0,86850.0,1.52009735]
[1765816268788,0.85292,86851.0,86850.0,1.52009735]
[1765816270388,0.174,86851.0,86850.0,1.52009735]
[1765816271880,0.85292,86851.0,86850.0,1.52009735]
[1765816272583,0.174,86851.0,86850.0,1.52009735]
[1765816273091,0.004,86851.0,86850.0,1.52009735]
[1765816273287,0.184,86851.0,86850.0,1.52009735]
[1765816273482,0.011512,86868.0,86866.0,0.6824622]
[1765816273679,0.18021317,86867.0,86866.0,0.6824622]
[1765816274492,0.85913317,86867.0,86866.0,0.67095]
[1765816274689,0.18021317,86867.0,86866.0,0.67095]
[1765816275087,0.0115117,86870.0,86869.0,0.67095]
[1765816275293,0.3598898,86884.0,86883.0,0.33184]
[1765816275599,0.67892,86878.0,86877.0,0.724]
[1765816275782,0.17,86878.0,86868.0,0.0115118]
[1765816275982,0.6904318,86869.0,86868.0,0.67095]
[1765816276181,0.6904318,86869.0,86868.0,1.39495]
[1765816276380,0.6904318,86869.0,86860.0,0.01168555]
[1765816276581,0.6904328,86861.0,86860.0,0.00017265]
[1765816276785,0.8504328,86861.0,86860.0,0.00017265]
[1765816277794,0.8804328,86861.0,86860.0,0.00017265]
[1765816277993,0.6904349,86845.0,86830.0,0.23340157]
[1765816278197,0.8804349,86845.0,86844.0,0.01978657]
[1765816278790,0.2015149,86845.0,86844.0,0.69073657]
[1765816279098,0.00017265,86853.0,86845.0,0.19652]
[1765816279296,0.67892,86845.0,86844.0,0.01978657]
[1765816279494,0.0115148,86846.0,86845.0,0.86747]
[1765816279798,0.00017265,86853.0,86852.0,0.67095]
[1765816279994,0.87909265,86853.0,86852.0,0.67095]
[1765816280793,0.20017265,86853.0,86852.0,0.67095]
[1765816281398,0.00017265,86853.0,86852.0,0.67095]
[1765816281595,0.0115118,86870.0,86869.0,0.67095]
[1765816281897,0.18,86870.0,86869.0,0.67095]
[1765816282589,0.52838,86870.0,86869.0,0.67095]
[1765816283102,0.85892,86870.0,86869.0,0.67095]
[1765816283411,0.86192,86870.0,86869.0,0.33184]
[1765816283896,0.85892,86870.0,86869.0,0.33184]
[1765816284101,0.86192,86870.0,86869.0,0.33184]
[1765816284296,0.6904327,86862.0,86861.0,0.00017265]
[1765816284601,0.8604327,86862.0,86861.0,0.00017265]
[1765816285296,0.8604327,86862.0,86861.0,0.67112265]
[1765816285595,0.5318927,86862.0,86861.0,0.67112265]
[1765816285800,0.1845127,86862.0,86861.0,0.67112265]
[1765816286497,0.8614327,86862.0,86861.0,0.00017265]
[1765816286696,0.8624327,86862.0,86861.0,0.00017265]
[1765816286890,0.6944327,86862.0,86861.0,0.00017265]
[1765816287096,0.8844327,86862.0,86861.0,0.00017265]
[1765816287695,0.54238,86862.0,86861.0,0.67112265]
[1765816288196,0.87292,86862.0,86861.0,0.00017265]
[1765816288401,0.194,86862.0,86845.0,0.9319949]
[1765816288591,0.194,86862.0,86846.0,0.67095]
[1765816288592,0.0115148,86847.0,86846.0,0.67095]
[1765816288788,0.0315148,86847.0,86846.0,0.67095]
[1765816288992,0.7104348,86847.0,86846.0,0.33184]
[1765816289193,0.67892,86845.0,86833.0,0.0115165]
[1765816289400,0.85892,86845.0,86835.0,0.0115162]
[1765816289802,0.0115151,86844.0,86832.0,0.11487238]
[1765816290105,0.0115151,86844.0,86813.0,0.0115192]
[1765816290106,0.6953663,86835.0,86834.0,0.68044]
[1765816290302,0.8953663,86835.0,86834.0,0.70096396]
[1765816290602,0.8953663,86835.0,86834.0,0.36759396]
[1765816290803,0.89548109,86835.0,86834.0,0.36759396]
[1765816290989,0.89548109,86835.0,86834.0,0.02052396]
[1765816291195,0.6953668,86834.0,86833.0,0.0115165]
[1765816291390,0.19,86834.0,86833.0,0.6919565]
[1765816291595,0.00011479,86835.0,86834.0,0.88389]
[1765816291802,0.07011479,86835.0,86834.0,0.88389]
[1765816292003,0.00011479,86835.0,86834.0,0.9038256]
[1765816292193,0.00011479,86835.0,86834.0,0.9098256]
[1765816292390,0.68938479,86835.0,86834.0,0.3730056]
[1765816292595,0.83938479,86835.0,86834.0,0.0259356]
[1765816293295,0.20497,86834.0,86820.0,0.19652]
[1765816293494,0.66927,86819.0,86811.0,0.10335578]
[1765816293800,0.83927,86819.0,86805.0,0.10335578]
[1765816293998,0.0115204,86804.0,86803.0,0.66928448]
[1765816294203,0.41147991,86804.0,86803.0,0.66928448]
[1765816294405,0.75089031,86804.0,86803.0,0.68937632]
[1765816294594,0.87089031,86804.0,86803.0,0.68937632]
[1765816294905,0.87089031,86804.0,86803.0,0.02019632]
[1765816295496,0.87089031,86804.0,86803.0,0.69237632]
[1765816296303,0.85936991,86804.0,86803.0,0.69237632]
[1765816296501,0.19009991,86804.0,86803.0,0.69437632]
[1765816296900,9.991e-05,86804.0,86803.0,0.69437632]
[1765816297300,0.51147991,86804.0,86803.0,0.69437632]
[1765816297505,0.17009991,86804.0,86803.0,0.69437632]
[1765816298208,0.18162031,86804.0,86803.0,0.69437632]
[1765816298400,0.85089031,86804.0,86803.0,0.69437632]
[1765816298606,0.85089031,86804.0,86803.0,0.02519632]
[1765816299303,0.17009991,86804.0,86803.0,0.69437632]
[1765816299508,0.19009991,86804.0,86803.0,0.69437632]
[1765816300413,9.991e-05,86804.0,86803.0,0.69437632]
[1765816300601,0.19009991,86804.0,86803.0,0.69237632]
[1765816300795,0.19009991,86804.0,86803.0,0.69137632]
[1765816301400,0.66936991,86804.0,86803.0,0.02219632]
[1765816301594,0.85936991,86804.0,86803.0,0.02219632]
[1765816302211,0.0115232,86783.0,86782.0,0.66918]
[1765816302409,0.8707932,86783.0,86782.0,0.66918]
[1765816302708,0.3529037,86779.0,86778.0,0.33860474]
[1765816303012,0.41138,86779.0,86778.0,0.67148474]
[1765816303201,0.01,86779.0,86778.0,0.68300854]
[1765816303603,0.01,86779.0,86778.0,0.70309698]
[1765816304214,0.012,86779.0,86778.0,0.69157318]
[1765816305010,0.74327,86779.0,86778.0,0.69157318]
[1765816305210,0.074,86779.0,86778.0,0.69157318]
[1765816306012,0.00017275,86791.0,86790.0,0.8723522]
[1765816306216,0.17017275,86791.0,86790.0,0.86083]
[1765816306517,0.83944275,86791.0,86790.0,0.3363]
[1765816306714,0.83944275,86791.0,86790.0,0.66918]
[1765816307230,0.51455275,86791.0,86790.0,0.88041]
[1765816307515,0.6807936,86780.0,86779.0,0.66918]
[1765816307721,0.8607936,86780.0,86779.0,0.66918]
[1765816308515,0.66927,86779.0,86778.0,0.35869318]
[1765816308820,0.84927,86779.0,86778.0,0.69157318]
[1765816309009,0.84927,86779.0,86778.0,0.02239318]
[1765816309617,1.063,86779.0,86778.0,0.02239318]
[1765816309814,0.0115239,86778.0,86759.0,0.0615263]
[1765816310010,0.3529062,86760.0,86759.0,0.7393961]
[1765816310216,0.1915262,86760.0,86759.0,0.7509225]
[1765816310411,0.18,86760.0,86759.0,0.7509225]
[1765816310915,0.00017287,86768.0,86767.0,0.6807053]
[1765816311119,0.16017287,86768.0,86767.0,0.6807053]
[1765816311318,0.50155287,86768.0,86767.0,0.66918]
[1765816311618,0.16017287,86768.0,86759.0,0.0847424]
[1765816311817,0.3529061,86762.0,86761.0,0.66918]
[1765816312119,0.66927,86760.0,86759.0,0.0712161]
[1765816312305,0.84927,86760.0,86759.0,0.0712161]
[1765816312509,0.84927,86760.0,86759.0,0.0702161]
[1765816312713,0.84927,86760.0,86759.0,0.7393961]
[1765816313020,0.85927,86760.0,86759.0,0.0664733]
[1765816313526,0.85927,86760.0,86759.0,0.0684733]
[1765816313824,0.85927,86760.0,86759.0,0.05966782]
[1765816314214,0.85927,86760.0,86759.0,0.03592717]
[1765816314518,0.6807976,86750.0,86739.0,0.011529]
[1765816314727,0.86093778,86750.0,86738.0,0.00230581]
[1765816314918,0.86093778,86750.0,86749.0,0.0204972]
[1765816315122,0.86093778,86750.0,86749.0,0.00012233]
[1765816315428,0.86093778,86750.0,86749.0,0.66930233]
[1765816315614,0.86093778,86750.0,86749.0,0.68918936]
[1765816315809,0.86093778,86750.0,86749.0,0.35630936]
[1765816316114,0.86293778,86750.0,86749.0,0.02000936]
[1765816316418,0.680799,86739.0,86738.0,0.00230581]